fUST/lending_fUST_20240823
["ID","MTS","AMOUNT","RATE_DAILY","PERIOD"]
[335656238,1724403054514,-3904.832813,0.00016712,2]
[335656239,1724403054527,-500.0,0.00016712,2]
[335656240,1724403054537,-3904.832813,0.00016712,2]
[335656241,1724403054546,-1095.81,0.00016712,2]
[335656242,1724403054556,-500.0,0.00016712,2]
[335656243,1724403054565,-500.0,0.00016712,2]
[335656244,1724403054575,-500.0,0.00016712,2]
[335656245,1724403054584,-500.0,0.00016712,2]
[335656246,1724403054593,-500.0,0.00016712,2]
[335656247,1724403054603,-596.1,0.00016712,2]
[335656248,1724403054613,-502.11,0.00016712,2]
[335656249,1724403054623,-2428.32,0.00016712,2]
[335656250,1724403054634,-500.0,0.00016712,2]
[335656251,1724403054643,-658.47,0.00016712,2]
[335656252,1724403054654,-894.0,0.00016712,2]
[335656253,1724403054664,-500.0,0.00016712,2]
[335656254,1724403054674,-1154.74,0.00016712,2]
[335656255,1724403054684,-500.0,0.00016712,2]
[335656256,1724403054693,-707.47,0.00016712,2]
[335656257,1724403054703,-500.0,0.00016712,2]
[335656258,1724403054713,-500.0,0.00016712,2]
[335656259,1724403054723,-500.0,0.00016712,2]
[335656260,1724403054732,-928.93,0.00016712,2]
[335656261,1724403054741,-500.0,0.00016712,2]
[335656262,1724403054751,-882.47,0.00016712,2]
[335656263,1724403054760,-500.0,0.00016712,2]
[335656264,1724403054769,-500.0,0.00016712,2]
[335656265,1724403054779,-2129.65,0.00016712,2]
[335656266,1724403054790,-500.0,0.00016712,2]
[335656267,1724403054800,-1328.93,0.00016712,2]
[335656268,1724403054809,-500.0,0.00016712,2]
[335656269,1724403054819,-500.0,0.00016712,2]
[335656270,1724403054828,-544.10641392,0.00016712,2]
[335656271,1724403054838,-500.0,0.00016712,2]
[335656272,1724403054847,-500.0,0.00016712,2]
[335656273,1724403054857,-1065.51,0.00016712,2]
[335656274,1724403054867,-3302.996526,0.00016712,2]
[335656275,1724403054877,-3302.996526,0.00016712,2]
[335656276,1724403054887,-920.71,0.00016712,2]
[335656277,1724403054896,-725.5,0.00016712,2]
[335656278,1724403054906,-3302.996526,0.00016712,2]
[335656279,1724403054916,-3302.996526,0.00016712,2]
[335656280,1724403054926,-573.08,0.00016712,2]
[335656281,1724403054936,-866.02,0.00016712,2]
[335656282,1724403054946,-584.71,0.00016712,2]
[335656283,1724403054956,-500.0,0.00016712,2]
[335656284,1724403054966,-557.51,0.00016712,2]
[335656285,1724403054976,-474.668343,0.00016712,2]
[335656286,1724403054985,-474.668343,0.00016712,2]
[335656287,1724403054996,-1248.11,0.00016712,2]
[335656288,1724403055006,-500.0,0.00016712,2]
[335656289,1724403055016,-500.0,0.00016712,2]
[335656290,1724403055029,-474.668343,0.00016712,2]
[335656291,1724403055038,-474.668343,0.00016712,2]
[335656292,1724403055050,-500.0,0.00016712,2]
[335656293,1724403055060,-781.21,0.00016712,2]
[335656294,1724403055070,-955.97,0.00016712,2]
[335656295,1724403055080,-1118.12,0.00016712,2]
[335656296,1724403055089,-995.08,0.00016712,2]
[335656297,1724403055099,-500.0,0.00016712,2]
[335656298,1724403055108,-930.72,0.00016712,2]
[335656299,1724403055118,-500.0,0.00016712,2]
[335656300,1724403055128,-500.0,0.00016712,2]
[335656301,1724403055139,-500.0,0.00016712,2]
[335656302,1724403055150,-500.0,0.00016712,2]
[335656303,1724403055161,-500.0,0.00016712,2]
[335656304,1724403055170,-500.0,0.00016712,2]
[335656305,1724403055180,-500.0,0.00016712,2]
[335656306,1724403055193,-1447.75,0.00016712,2]
[335656307,1724403055202,-500.0,0.00016712,2]
[335656308,1724403055211,-161.901032,0.00016712,2]
[335656309,1724403055221,-161.901032,0.00016712,2]
[335656310,1724403055385,-500.0,0.00016712,2]
[335656311,1724403055395,-780.91,0.00016712,2]
[335656312,1724403055405,-500.0,0.00016712,2]
[335656313,1724403055415,-500.0,0.00016712,2]
[335656314,1724403055424,-500.0,0.00016712,2]
[335656315,1724403055434,-799.82,0.00016712,2]
[335656316,1724403055443,-617.97,0.00016712,2]
[335656317,1724403055453,-161.901032,0.00016712,2]
[335656318,1724403055462,-161.901032,0.00016712,2]
[335656319,1724403055472,-500.0,0.00016712,2]
[335656320,1724403055481,-500.0,0.00016712,2]
[335656321,1724403055491,-1015.05,0.00016712,2]
[335656322,1724403055501,-500.0,0.00016712,2]
[335656323,1724403055510,-315.91567911,0.00016712,2]
[335656324,1724403055519,-806.27,0.00016712,2]
[335656325,1724403055530,-500.0,0.00016712,2]
[335656326,1724403055541,-785.99,0.00016712,2]
[335656327,1724403055552,-500.0,0.00016712,2]
[335656328,1724403055563,-500.0,0.00016712,2]
[335656329,1724403055572,-500.0,0.00016712,2]
[335656330,1724403055585,-500.0,0.00016712,2]
[335656331,1724403055596,-1316.04,0.00016712,2]
[335656332,1724403055606,-500.0,0.00016712,2]
[335656333,1724403055616,-525.95013454,0.00016712,2]
[335656334,1724403055627,-949.55,0.00016712,2]
[335656335,1724403055639,-959.55,0.00016712,2]
[335656336,1724403055648,-500.0,0.00016712,2]
[335656337,1724403055658,-500.0,0.00016712,2]
[335656338,1724403055667,-500.0,0.00016712,2]
[335656339,1724403055677,-643.73,0.00016712,2]
[335656340,1724403055685,-7962.652156,0.00016712,2]
[335656341,1724403055696,-500.0,0.00016712,2]
[335656342,1724403055706,-7962.652156,0.00016712,2]
[335656343,1724403055715,-431.8913985,0.00016712,2]
[335656344,1724403055727,-286.55664773,0.00016712,2]
[335656345,1724403055738,-500.0,0.00016712,2]
[335656346,1724403055747,-7962.652156,0.00016712,2]
[335656347,1724403055757,-500.0,0.00016712,2]
[335656348,1724403055767,-7962.652156,0.00016712,2]
[335656349,1724403055776,-500.0,0.00016712,2]
[335656350,1724403055786,-500.0,0.00016712,2]
[335656351,1724403055795,-500.0,0.00016712,2]
[335656352,1724403055804,-3099.28,0.00016712,2]
[335656353,1724403055814,-5126.520702,0.00016712,2]
[335656354,1724403055823,-500.0,0.00016712,2]
[335656355,1724403055833,-5126.520702,0.00016712,2]
[335656356,1724403055844,-500.0,0.00016712,2]
[335656357,1724403055853,-500.0,0.00016712,2]
[335656358,1724403055863,-500.0,0.00016712,2]
[335656359,1724403055874,-551.39,0.00016712,2]
[335656360,1724403055883,-500.0,0.00016712,2]
[335656361,1724403055893,-415.78811435,0.00016712,2]
[335656362,1724403055902,-500.0,0.00016712,2]
[335656363,1724403055913,-5126.520702,0.00016712,2]
[335656364,1724403055924,-5126.520702,0.00016712,2]
[335656365,1724403055935,-500.0,0.00016712,2]
[335656366,1724403055946,-500.0,0.00016712,2]
[335656367,1724403055959,-500.0,0.00016712,2]
[335656368,1724403055969,-500.0,0.00016712,2]
[335656369,1724403055980,-500.0,0.00016712,2]
[335656370,1724403055990,-500.0,0.00016712,2]
[335656371,1724403056000,-711.72,0.00016712,2]
[335656372,1724403056010,-2796.496519,0.00016712,2]
[335656373,1724403056020,-2796.496519,0.00016712,2]
[335656374,1724403056029,-500.0,0.00016712,2]
[335656375,1724403056039,-500.0,0.00016712,2]
[335656376,1724403056049,-500.0,0.00016712,2]
[335656377,1724403056060,-2796.496519,0.00016712,2]
[335656378,1724403056069,-500.0,0.00016712,2]
[335656379,1724403056079,-501.05320169,0.00016712,2]
[335656380,1724403056089,-2796.496519,0.00016712,2]
[335656381,1724403056098,-500.0,0.00016712,2]
[335656382,1724403056108,-500.0,0.00016712,2]
[335656383,1724403056117,-500.0,0.00016712,2]
[335656384,1724403056126,-500.0,0.00016712,2]
[335656385,1724403056137,-299.142425,0.00016712,2]
[335656386,1724403056149,-500.0,0.00016712,2]
[335656387,1724403056160,-299.142425,0.00016712,2]
[335656388,1724403056171,-500.0,0.00016712,2]
[335656389,1724403056182,-150.88759461,0.00016712,2]
[335656390,1724403056197,-299.142425,0.00016712,2]
[335656391,1724403056206,-1284.65,0.00016712,2]
[335656392,1724403056215,-3547.43538,0.00016712,2]
[335656393,1724403056227,-299.142425,0.00016712,2]
[335656394,1724403056236,-3547.43538,0.00016712,2]
[335656395,1724403056246,-760.56,0.00016712,2]
[335656396,1724403056256,-500.0,0.00016712,2]
[335656397,1724403056266,-579.37,0.00016712,2]
[335656398,1724403056279,-3547.43538,0.00016712,2]
[335656399,1724403056290,-3547.43538,0.00016712,2]
[335656400,1724403056302,-1265.75,0.00016712,2]
[335656401,1724403056313,-500.0,0.00016712,2]
[335656402,1724403056323,-508.1556924,0.00016712,2]
[335656403,1724403056334,-500.0,0.00016712,2]
[335656404,1724403056344,-500.0,0.00016712,2]
[335656405,1724403056354,-500.0,0.00016712,2]
[335656406,1724403056364,-878.82,0.00016712,2]
[335656407,1724403056374,-500.0,0.00016712,2]
[335656408,1724403056384,-151.0,0.00016712,2]
[335656409,1724403056393,-500.0,0.00016712,2]
[335656410,1724403056405,-151.0,0.00016712,2]
[335656411,1724403056417,-500.0,0.00016712,2]
[335656412,1724403056427,-317.68978065,0.00016712,2]
[335656413,1724403056437,-151.0,0.00016712,2]
[335656414,1724403056447,-500.0,0.00016712,2]
[335656415,1724403056457,-151.0,0.00016712,2]
[335656416,1724403056467,-850.14,0.00016712,2]
[335656417,1724403056478,-500.0,0.00016712,2]
[335656418,1724403056487,-514.51,0.00016712,2]
[335656419,1724403056496,-500.0,0.00016712,2]
[335656420,1724403056506,-500.0,0.00016712,2]
[335656421,1724403056515,-509.34574247,0.00016712,2]
[335656422,1724403056528,-1226.14,0.00016712,2]
[335656423,1724403056537,-751.4,0.00016712,2]
[335656424,1724403056547,-885.85,0.00016712,2]
[335656425,1724403056557,-500.0,0.00016712,2]
[335656426,1724403056566,-500.0,0.00016712,2]
[335656427,1724403056575,-506.2396318,0.00016712,2]
[335656428,1724403056585,-500.0,0.00016712,2]
[335656429,1724403056594,-500.0,0.00016712,2]
[335656430,1724403056604,-500.0,0.00016712,2]
[335656431,1724403056614,-570.57,0.00016712,2]
[335656432,1724403056623,-689.57,0.00016712,2]
[335656433,1724403056633,-500.0,0.00016712,2]
[335656434,1724403056643,-500.0,0.00016712,2]
[335656435,1724403056653,-500.0,0.00016712,2]
[335656436,1724403056663,-500.0,0.00016712,2]
[335656437,1724403056672,-514.37785923,0.00016712,2]
[335656438,1724403056682,-500.0,0.00016712,2]
[335656439,1724403056692,-500.0,0.00016712,2]
[335656440,1724403056702,-500.0,0.00016712,2]
[335656441,1724403056712,-500.0,0.00016712,2]
[335656442,1724403056722,-500.0,0.00016712,2]
[335656443,1724403056732,-1052.86,0.00016712,2]
[335656444,1724403056742,-612.13,0.00016712,2]
[335656445,1724403056752,-500.0,0.00016712,2]
[335656446,1724403056762,-1027.46,0.00016712,2]
[335656447,1724403056772,-500.0,0.00016712,2]
[335656448,1724403056781,-500.0,0.00016712,2]
[335656449,1724403056791,-500.0,0.00016712,2]
[335656450,1724403056801,-500.0,0.00016712,2]
[335656451,1724403056811,-2124.42,0.00016712,2]
[335656452,1724403056822,-500.0,0.00016712,2]
[335656453,1724403056831,-646.47,0.00016712,2]
[335656454,1724403056841,-500.0,0.00016712,2]
[335656455,1724403056851,-703.09,0.00016712,2]
[335656456,1724403056860,-500.0,0.00016712,2]
[335656457,1724403056870,-512.15150887,0.00016712,2]
[335656458,1724403056880,-577.35,0.00016712,2]
[335656459,1724403056890,-500.0,0.00016712,2]
[335656460,1724403056900,-2063.14,0.00016712,2]
[335656461,1724403056910,-173.77076535,0.00016712,2]
[335656462,1724403056920,-500.0,0.00016712,2]
[335656463,1724403056930,-950.38,0.00016712,2]
[335656464,1724403056940,-500.0,0.00016712,2]
[335656465,1724403056950,-500.0,0.00016712,2]
[335656466,1724403056960,-500.0,0.00016712,2]
[335656467,1724403056969,-1981.73,0.00016712,2]
[335656468,1724403056979,-656.253367,0.00016712,2]
[335656469,1724403056989,-1606.2,0.00016712,2]
[335656470,1724403057000,-1495.27,0.00016712,2]
[335656471,1724403057010,-656.253367,0.00016712,2]
[335656472,1724403057019,-642.13,0.00016712,2]
[335656473,1724403057031,-500.0,0.00016712,2]
[335656474,1724403057042,-500.0,0.00016712,2]
[335656475,1724403057052,-980.26,0.00016712,2]
[335656476,1724403057062,-762.28,0.00016712,2]
[335656477,1724403057072,-656.253367,0.00016712,2]
[335656478,1724403057082,-656.253367,0.00016712,2]
[335656479,1724403057091,-1000.0,0.00016712,2]
[335656480,1724403057101,-2740.44,0.00016712,2]
[335656481,1724403057111,-493.45012923,0.00016712,2]
[335656482,1724403058063,-843.82,0.00016438,2]
[335656483,1724403058072,-843.82,0.00016438,2]
[335656484,1724403058082,-843.82,0.00016438,2]
[335656485,1724403058092,-843.82,0.00016438,2]
[335656486,1724403058101,-843.82,0.00016438,2]
[335656487,1724403058111,-843.82,0.00016438,2]
[335656488,1724403058120,-843.82,0.00016438,2]
[335656489,1724403058128,-843.82,0.00016438,2]
[335656490,1724403058137,-798.25987077,0.00016712,2]
[335656491,1724403058145,-500.0,0.00016712,2]
[335656492,1724403058154,-822.16,0.00016712,2]
[335656493,1724403058162,-1229.17,0.00016712,2]
[335656494,1724403058172,-1163.47,0.00016712,2]
[335656495,1724403058181,-500.0,0.00016712,2]
[335656496,1724403058191,-500.0,0.00016712,2]
[335656497,1724403058204,-500.0,0.00016712,2]
[335656498,1724403058213,-425.1389994,0.00016712,2]
[335656499,1724403058222,-500.0,0.00016712,2]
[335656500,1724403058231,-151.0,0.00016712,2]
[335656501,1724403058240,-621.72,0.00016712,2]
[335656502,1724403058249,-3760.76,0.00016712,2]
[335656503,1724403058259,-500.0,0.00016712,2]
[335656504,1724403058268,-770.66,0.00016712,2]
[335656505,1724403058278,-1165.46,0.00016712,2]
[335656506,1724403058290,-921.59,0.00016712,2]
[335656507,1724403058298,-500.0,0.00016712,2]
[335656508,1724403058309,-3586.06,0.00016712,2]
[335656509,1724403058319,-500.0,0.00016712,2]
[335656510,1724403058328,-876.93,0.00016712,2]
[335656511,1724403058338,-500.0,0.00016712,2]
[335656512,1724403058347,-842.41,0.00016712,2]
[335656513,1724403058357,-500.73801096,0.00016712,2]
[335656514,1724403058365,-500.0,0.00016712,2]
[335656515,1724403058374,-1414.05,0.00016712,2]
[335656516,1724403058383,-500.0,0.00016712,2]
[335656517,1724403058393,-849.99,0.00016712,2]
[335656518,1724403058401,-500.0,0.00016712,2]
[335656519,1724403058409,-500.0,0.00016712,2]
[335656520,1724403058418,-762.32,0.00016712,2]
[335656521,1724403058427,-200.61,0.00016712,2]
[335656522,1724403058437,-500.0,0.00016712,2]
[335656523,1724403058445,-500.16925323,0.00016712,2]
[335656524,1724403058453,-500.0,0.00016712,2]
[335656525,1724403058462,-673.74,0.00016712,2]
[335656526,1724403058471,-310.633372,0.00016712,2]
[335656527,1724403058481,-500.0,0.00016712,2]
[335656528,1724403058490,-500.0,0.00016712,2]
[335656529,1724403058498,-500.0,0.00016712,2]
[335656530,1724403058507,-423.613468,0.00016712,2]
[335656531,1724403058515,-168.0982547,0.00016712,2]
[335656532,1724403058523,-423.613468,0.00016712,2]
[335656533,1724403058533,-500.0,0.00016712,2]
[335656534,1724403058542,-310.633372,0.00016712,2]
[335656535,1724403058550,-500.0,0.00016712,2]
[335656536,1724403058559,-500.0,0.00016712,2]
[335656537,1724403058567,-423.613468,0.00016712,2]
[335656538,1724403058576,-423.613468,0.00016712,2]
[335656539,1724403058585,-596.58067446,0.00016712,2]
[335656540,1724403058593,-151.0,0.00016712,2]
[335656541,1724403058601,-500.0,0.00016712,2]
[335656542,1724403058610,-778.6,0.00016712,2]
[335656543,1724403058618,-531.82,0.00016712,2]
[335656544,1724403058627,-500.0,0.00016712,2]
[335656545,1724403058636,-500.0,0.00016712,2]
[335656546,1724403058645,-500.0,0.00016712,2]
[335656547,1724403058654,-500.0,0.00016712,2]
[335656548,1724403058663,-1807.417297,0.00016712,2]
[335656549,1724403058671,-500.0,0.00016712,2]
[335656550,1724403058680,-3215.63,0.00016712,2]
[335656551,1724403058688,-500.0,0.00016712,2]
[335656552,1724403058696,-761.17,0.00016712,2]
[335656553,1724403058705,-500.0,0.00016712,2]
[335656554,1724403058712,-500.0,0.00016712,2]
[335656555,1724403058721,-1807.417297,0.00016712,2]
[335656556,1724403058730,-500.0,0.00016712,2]
[335656557,1724403058739,-500.0,0.00016712,2]
[335656558,1724403058747,-500.0,0.00016712,2]
[335656559,1724403058757,-500.0,0.00016712,2]
[335656560,1724403058767,-588.254118,0.00016712,2]
[335656561,1724403058777,-3230.84,0.00016712,2]
[335656562,1724403058791,-588.254118,0.00016712,2]
[335656563,1724403058812,-332.70948275,0.00016712,2]
[335656564,1724403058826,-519.31,0.00016712,2]
[335656565,1724403058844,-1569.05,0.00016712,2]
[335656566,1724403058864,-500.0,0.00016712,2]
[335656567,1724403058881,-588.254118,0.00016712,2]
[335656568,1724403058899,-588.254118,0.00016712,2]
[335656569,1724403058916,-500.0,0.00016712,2]
[335656570,1724403058936,-559.12,0.00016712,2]
[335656571,1724403058951,-500.0,0.00016712,2]
[335656572,1724403058968,-500.0,0.00016712,2]
[335656573,1724403058988,-500.0,0.00016712,2]
[335656574,1724403059006,-500.0,0.00016712,2]
[335656575,1724403059024,-1164.46,0.00016712,2]
[335656576,1724403059035,-899.75,0.00016712,2]
[335656577,1724403059049,-730.89,0.00016712,2]
[335656578,1724403059067,-500.0,0.00016712,2]
[335656579,1724403059081,-500.0,0.00016712,2]
[335656580,1724403059095,-500.0,0.00016712,2]
[335656581,1724403059108,-500.0,0.00016712,2]
[335656582,1724403059121,-833.53,0.00016712,2]
[335656583,1724403059134,-1565.08,0.00016712,2]
[335656584,1724403059151,-817.92,0.00016712,2]
[335656585,1724403059164,-500.0,0.00016712,2]
[335656586,1724403059178,-544.70045129,0.00016712,2]
[335656587,1724403059193,-877.17,0.00016712,2]
[335656588,1724403059209,-500.0,0.00016712,2]
[335656589,1724403059225,-687.57,0.00016712,2]
[335656590,1724403059239,-4145.38,0.00016712,2]
[335656591,1724403059253,-500.0,0.00016712,2]
[335656592,1724403059267,-7096.457574,0.00016712,2]
[335656593,1724403059285,-3546.379717,0.00016712,2]
[335656594,1724403059300,-3546.379717,0.00016712,2]
[335656595,1724403059315,-500.0,0.00016712,2]
[335656596,1724403059330,-500.0,0.00016712,2]
[335656597,1724403059345,-500.0,0.00016712,2]
[335656598,1724403059360,-500.0,0.00016712,2]
[335656599,1724403059374,-500.0,0.00016712,2]
[335656600,1724403059388,-7096.457574,0.00016712,2]
[335656601,1724403059404,-3546.379717,0.00016712,2]
[335656602,1724403059419,-3546.379717,0.00016712,2]
[335656603,1724403059434,-1110.64,0.00016712,2]
[335656604,1724403059449,-500.0,0.00016712,2]
[335656605,1724403059464,-500.0,0.00016712,2]
[335656606,1724403059478,-1047.71,0.00016712,2]
[335656607,1724403059494,-565.81755319,0.00016712,2]
[335656608,1724403059509,-500.0,0.00016712,2]
[335656609,1724403059525,-207.12393168,0.00016712,2]
[335656610,1724403059539,-734.92,0.00016712,2]
[335656611,1724403059554,-1207.37,0.00016712,2]
[335656612,1724403059568,-690.82,0.00016712,2]
[335656613,1724403059581,-1042.75,0.00016712,2]
[335656614,1724403059595,-500.0,0.00016712,2]
[335656615,1724403059609,-500.0,0.00016712,2]
[335656616,1724403059622,-500.0,0.00016712,2]
[335656617,1724403059637,-500.0,0.00016712,2]
[335656618,1724403059651,-1301.48,0.00016712,2]
[335656619,1724403059666,-500.0,0.00016712,2]
[335656620,1724403059680,-500.0,0.00016712,2]
[335656621,1724403059694,-543.59,0.00016712,2]
[335656622,1724403059707,-720.34,0.00016712,2]
[335656623,1724403059722,-624.77,0.00016712,2]
[335656624,1724403059735,-500.0,0.00016712,2]
[335656625,1724403059750,-788.89,0.00016712,2]
[335656626,1724403059766,-532.46,0.00016712,2]
[335656627,1724403059780,-669.09,0.00016712,2]
[335656628,1724403059794,-500.0,0.00016712,2]
[335656629,1724403059808,-2560.54,0.00016712,2]
[335656630,1724403059822,-1783.26,0.00016712,2]
[335656631,1724403059838,-1060.79,0.00016712,2]
[335656632,1724403059852,-1337.99,0.00016712,2]
[335656633,1724403059891,-943.3,0.00016712,2]
[335656634,1724403059914,-500.0,0.00016712,2]
[335656635,1724403059936,-500.0,0.00016712,2]
[335656636,1724403059958,-500.0,0.00016712,2]
[335656637,1724403059977,-694.81,0.00016712,2]
[335656638,1724403059995,-500.0,0.00016712,2]
[335656639,1724403060013,-500.0,0.00016712,2]
[335656640,1724403060031,-727.59,0.00016712,2]
[335656641,1724403060049,-500.0,0.00016712,2]
[335656642,1724403060066,-4532.0,0.00016712,2]
[335656643,1724403060083,-500.0,0.00016712,2]
[335656644,1724403060093,-500.0,0.00016712,2]
[335656645,1724403060103,-399.917669,0.00016712,2]
[335656646,1724403060113,-500.0,0.00016712,2]
[335656647,1724403060123,-604.86,0.00016712,2]
[335656648,1724403060133,-598.93,0.00016712,2]
[335656649,1724403060144,-637.18,0.00016712,2]
[335656650,1724403060155,-500.0,0.00016712,2]
[335656651,1724403060165,-500.0,0.00016712,2]
[335656652,1724403060174,-399.917669,0.00016712,2]
[335656653,1724403060184,-4497.15,0.00016712,2]
[335656654,1724403060194,-659.26,0.00016712,2]
[335656655,1724403060206,-500.0,0.00016712,2]
[335656656,1724403060216,-500.0,0.00016712,2]
[335656657,1724403060226,-500.0,0.00016712,2]
[335656658,1724403060236,-500.0,0.00016712,2]
[335656659,1724403060247,-500.0,0.00016712,2]
[335656660,1724403060257,-2163.88,0.00016712,2]
[335656661,1724403060267,-501.5443436,0.00016712,2]
[335656662,1724403060277,-712.72,0.00016712,2]
[335656663,1724403060298,-1325.08,0.00016712,2]
[335656664,1724403060308,-528.91,0.00016712,2]
[335656665,1724403060318,-500.0,0.00016712,2]
[335656666,1724403060327,-1718.77,0.00016712,2]
[335656667,1724403060337,-1567.59,0.00016712,2]
[335656668,1724403060348,-953.68,0.00016712,2]
[335656669,1724403060358,-500.0,0.00016712,2]
[335656670,1724403060369,-557.39,0.00016712,2]
[335656671,1724403060379,-500.0,0.00016712,2]
[335656672,1724403060389,-500.0,0.00016712,2]
[335656673,1724403060399,-500.0,0.00016712,2]
[335656674,1724403060409,-998.99,0.00016712,2]
[335656675,1724403060418,-152.74317081,0.00016712,2]
[335656676,1724403060427,-500.0,0.00016712,2]
[335656677,1724403060438,-1670.29,0.00016712,2]
[335656678,1724403060448,-500.47986134,0.00016712,2]
[335656679,1724403060458,-500.0,0.00016712,2]
[335656680,1724403060472,-500.0,0.00016712,2]
[335656681,1724403060482,-1139.99,0.00016712,2]
[335656682,1724403060973,-747.845342,0.00016712,2]
[335656683,1724403060997,-500.0,0.00016712,2]
[335656684,1724403061026,-768.2,0.00016712,2]
[335656685,1724403061046,-500.0,0.00016712,2]
[335656686,1724403061058,-500.0,0.00016712,2]
[335656687,1724403061068,-747.845342,0.00016712,2]
[335656688,1724403061078,-616.3,0.00016712,2]
[335656689,1724403061087,-500.0,0.00016712,2]
[335656690,1724403061096,-1625.14,0.00016712,2]
[335656691,1724403061107,-500.0,0.00016712,2]
[335656692,1724403061117,-994.66,0.00016712,2]
[335656693,1724403061127,-500.0,0.00016712,2]
[335656694,1724403061137,-500.0,0.00016712,2]
[335656695,1724403061148,-2292.68,0.00016712,2]
[335656696,1724403061158,-500.0,0.00016712,2]
[335656697,1724403061168,-500.0,0.00016712,2]
[335656698,1724403061178,-500.0,0.00016712,2]
[335656699,1724403061188,-500.0,0.00016712,2]
[335656700,1724403061200,-1178.69,0.00016712,2]
[335656701,1724403061210,-574.55,0.00016712,2]
[335656702,1724403061220,-500.0,0.00016712,2]
[335656703,1724403061229,-7241.93,0.00016712,2]
[335656704,1724403061239,-869.44,0.00016712,2]
[335656705,1724403061249,-1312.81,0.00016712,2]
[335656706,1724403061259,-500.0,0.00016712,2]
[335656707,1724403061269,-808.73,0.00016712,2]
[335656708,1724403061279,-500.0,0.00016712,2]
[335656709,1724403061290,-964.47,0.00016712,2]
[335656710,1724403061301,-906.89,0.00016712,2]
[335656711,1724403061310,-500.0,0.00016712,2]
[335656712,1724403061320,-500.0,0.00016712,2]
[335656713,1724403061329,-1021.72,0.00016712,2]
[335656714,1724403061339,-2825.336557,0.00016712,2]
[335656715,1724403061350,-943.98,0.00016712,2]
[335656716,1724403061360,-1653.77,0.00016712,2]
[335656717,1724403061372,-1465.28,0.00016712,2]
[335656718,1724403061385,-500.0,0.00016712,2]
[335656719,1724403061396,-686.9,0.00016712,2]
[335656720,1724403061408,-2825.336557,0.00016712,2]
[335656721,1724403061419,-755.29,0.00016712,2]
[335656722,1724403061430,-500.0,0.00016712,2]
[335656723,1724403061439,-500.0,0.00016712,2]
[335656724,1724403061449,-500.0,0.00016712,2]
[335656725,1724403061458,-941.19,0.00016712,2]
[335656726,1724403061468,-819.79,0.00016712,2]
[335656727,1724403061478,-500.0,0.00016712,2]
[335656728,1724403061487,-1869.14,0.00016712,2]
[335656729,1724403061497,-500.0,0.00016712,2]
[335656730,1724403061506,-500.0,0.00016712,2]
[335656731,1724403061515,-500.0,0.00016712,2]
[335656732,1724403061525,-500.0,0.00016712,2]
[335656733,1724403061538,-500.0,0.00016712,2]
[335656734,1724403061547,-856.8,0.00016712,2]
[335656735,1724403061557,-500.0,0.00016712,2]
[335656736,1724403061567,-8429.94,0.00016712,2]
[335656737,1724403061577,-151.0,0.00016712,2]